[Event "January 2 Early 2024"]
[Site "https://www.chess.com"]
[Date "2024.01.02"]
[Round "6"]
[White "Rustemov, Alexander"]
[Black "Zemlyanskii, Ivan"]
[Result "1-0"]
[Board "7"]
[TimeControl "180+1"]
[WhiteFideId "4119002"]
[BlackFideId "24249971"]
[WhiteElo "2864"]
[BlackElo "3015"]
[WhiteTeam "RUS"]
[BlackTeam "RUS"]
[WhiteClock "0:00:11"]
[BlackClock "0:00:00"]

1. d4 {[%clk 0:03:00]}  d5 {[%clk 0:02:59]} 2. c4 {[%clk 0:03:01]}  e6 {[%clk 0:02:59]} 3. Nc3 {[%clk 0:03:01]}  c6 {[%clk 0:02:59]} 4. e3 {[%clk 0:03:01]}  Nf6 {[%clk 0:02:59]} 5. Nf3 {[%clk 0:03:01]}  Nbd7 {[%clk 0:02:59]} 6. Qc2 {[%clk 0:03:01]}  Bd6 {[%clk 0:02:59]} 7. b3 {[%clk 0:03:02]}  O-O {[%clk 0:02:58]} 8. Be2 {[%clk 0:03:02]}  b6 {[%clk 0:02:54]} 9. O-O {[%clk 0:03:02]}  Bb7 {[%clk 0:02:54]} 10. Bb2 {[%clk 0:03:01]}  Qe7 {[%clk 0:02:55]} 11. Rad1 {[%clk 0:03:00]}  Rfe8 {[%clk 0:02:54]} 12. Rfe1 {[%clk 0:02:58]}  Nf8 {[%clk 0:02:33]} 13. e4 {[%clk 0:02:54]}  Nxe4 {[%clk 0:02:27]} 14. Nxe4 {[%clk 0:02:54]}  dxe4 {[%clk 0:02:28]} 15. Qxe4 {[%clk 0:02:54]}  Bb4 {[%clk 0:02:29]} 16. Rf1 {[%clk 0:02:51]}  c5 {[%clk 0:02:18]} 17. Qe3 {[%clk 0:02:51]}  Rad8 {[%clk 0:02:07]} 18. g3 {[%clk 0:02:40]}  cxd4 {[%clk 0:02:01]} 19. Nxd4 {[%clk 0:02:31]}  Bc5 {[%clk 0:01:53]} 20. Qc3 {[%clk 0:02:26]}  Qg5 {[%clk 0:01:24]} 21. b4 {[%clk 0:02:05]}  Be7 {[%clk 0:01:13]} 22. Nf3 {[%clk 0:02:01]}  Qh6 {[%clk 0:01:00]} 23. a3 {[%clk 0:02:00]}  Nd7 {[%clk 0:00:55]} 24. Qc1 {[%clk 0:01:45]}  Qxc1 {[%clk 0:00:52]} 25. Rxc1 {[%clk 0:01:40]}  Rc8 {[%clk 0:00:49]} 26. Rfd1 {[%clk 0:01:39]}  Red8 {[%clk 0:00:49]} 27. Ne1 {[%clk 0:01:26]}  Kf8 {[%clk 0:00:46]} 28. Bf3 {[%clk 0:01:25]}  Bxf3 {[%clk 0:00:40]} 29. Nxf3 {[%clk 0:01:25]}  f6 {[%clk 0:00:30]} 30. Kf1 {[%clk 0:01:24]}  e5 {[%clk 0:00:31]} 31. Ke2 {[%clk 0:01:23]}  Kf7 {[%clk 0:00:31]} 32. Rc2 {[%clk 0:01:17]}  Nb8 {[%clk 0:00:30]} 33. Rxd8 {[%clk 0:01:14]}  Rxd8 {[%clk 0:00:31]} 34. Nd2 {[%clk 0:01:00]}  Rc8 {[%clk 0:00:30]} 35. Nb3 {[%clk 0:00:59]}  Ke6 {[%clk 0:00:27]} 36. f3 {[%clk 0:00:56]}  Nc6 {[%clk 0:00:24]} 37. Bc3 {[%clk 0:00:53]}  Nd8 {[%clk 0:00:14]} 38. Kd3 {[%clk 0:00:51]}  Nb7 {[%clk 0:00:13]} 39. Bd2 {[%clk 0:00:48]}  a5 {[%clk 0:00:13]} 40. bxa5 {[%clk 0:00:44]}  bxa5 {[%clk 0:00:14]} 41. Bxa5 {[%clk 0:00:43]}  Bxa3 {[%clk 0:00:12]} 42. Bb6 {[%clk 0:00:41]}  Rc6 {[%clk 0:00:10]} 43. Be3 {[%clk 0:00:39]}  Bb4 {[%clk 0:00:09]} 44. Ra2 {[%clk 0:00:39]}  Nc5+ {[%clk 0:00:04]} 45. Bxc5 {[%clk 0:00:38]}  Bxc5 {[%clk 0:00:04]} 46. Nxc5+ {[%clk 0:00:33]}  Rxc5 {[%clk 0:00:05]} 47. Ra6+ {[%clk 0:00:34]}  Kf5 {[%clk 0:00:03]} 48. Ra7 {[%clk 0:00:34]}  Kg6 {[%clk 0:00:04]} 49. h4 {[%clk 0:00:33]}  f5 {[%clk 0:00:02]} 50. h5+ {[%clk 0:00:30]}  Kh6 {[%clk 0:00:02]} 51. Rf7 {[%clk 0:00:31]}  g6 {[%clk 0:00:02]} 52. hxg6 {[%clk 0:00:24]}  hxg6 {[%clk 0:00:03]} 53. Rd7 {[%clk 0:00:21]}  Rc8 {[%clk 0:00:03]} 54. Rd5 {[%clk 0:00:19]}  Re8 {[%clk 0:00:03]} 55. c5 {[%clk 0:00:19]}  Kg5 {[%clk 0:00:04]} 56. c6 {[%clk 0:00:18]}  Rc8 {[%clk 0:00:01]} 57. Rd6 {[%clk 0:00:18]}  f4 {[%clk 0:00:01]} 58. g4 {[%clk 0:00:18]}  Kh4 {[%clk 0:00:02]} 59. Ke4 {[%clk 0:00:18]}  Kg3 {[%clk 0:00:02]} 60. Rxg6 {[%clk 0:00:18]}  Ra8 {[%clk 0:00:02]} 61. c7 {[%clk 0:00:15]}  Ra4+ {[%clk 0:00:02]} 62. Kxe5 {[%clk 0:00:15]}  Rc4 {[%clk 0:00:02]} 63. Kd6 {[%clk 0:00:13]}  Kxf3 {[%clk 0:00:02]} 64. g5 {[%clk 0:00:14]}  Kg4 {[%clk 0:00:02]} 65. Rg8 {[%clk 0:00:14]}  f3 {[%clk 0:00:03]} 66. g6 {[%clk 0:00:12]}  Rc2 {[%clk 0:00:02]} 67. c8=Q+ {[%clk 0:00:11]}  Rxc8 {[%clk 0:00:02]} 68. Rxc8 {[%clk 0:00:11]}  f2 {[%clk 0:00:02]} 69. Rf8 {[%clk 0:00:11]}  Kg3 {[%clk 0:00:00]} 70. g7 {[%clk 0:00:11]} 1-0

[Event "January 2 Early 2024"]
[Site "https://www.chess.com"]
[Date "2024.01.02"]
[Round "6"]
[White "Carlsen, Magnus"]
[Black "Donchenko, Alexander"]
[Result "1-0"]
[Board "8"]
[TimeControl "180+1"]
[WhiteFideId "1503014"]
[BlackFideId "24603295"]
[WhiteElo "3368"]
[BlackElo "2931"]
[WhiteTeam "NOR"]
[BlackTeam "GER"]
[WhiteClock "0:00:28"]
[BlackClock "0:00:03"]

1. h3 {[%clk 0:02:47]}  Nf6 {[%clk 0:02:57]} 2. g4 {[%clk 0:02:46]}  e6 {[%clk 0:02:53]} 3. g5 {[%clk 0:02:44]}  Nd5 {[%clk 0:02:53]} 4. e4 {[%clk 0:02:41]}  Nb6 {[%clk 0:02:49]} 5. a4 {[%clk 0:02:38]}  a5 {[%clk 0:02:48]} 6. d4 {[%clk 0:02:33]}  Nc6 {[%clk 0:02:40]} 7. Nc3 {[%clk 0:02:32]}  e5 {[%clk 0:02:37]} 8. dxe5 {[%clk 0:02:31]}  Nxe5 {[%clk 0:02:37]} 9. f4 {[%clk 0:02:30]}  Nc6 {[%clk 0:02:29]} 10. Be3 {[%clk 0:02:30]}  Bb4 {[%clk 0:02:27]} 11. Bxb6 {[%clk 0:02:27]}  cxb6 {[%clk 0:02:25]} 12. Bc4 {[%clk 0:02:27]}  Qe7 {[%clk 0:02:13]} 13. Qd3 {[%clk 0:02:21]}  Bxc3+ {[%clk 0:02:03]} 14. bxc3 {[%clk 0:02:19]}  d5 {[%clk 0:02:03]} 15. Bxd5 {[%clk 0:02:19]}  Be6 {[%clk 0:02:03]} 16. Ne2 {[%clk 0:02:17]}  O-O {[%clk 0:02:03]} 17. O-O {[%clk 0:02:14]}  Rfe8 {[%clk 0:02:02]} 18. Rae1 {[%clk 0:02:02]}  Bxd5 {[%clk 0:01:55]} 19. exd5 {[%clk 0:02:02]}  Qc5+ {[%clk 0:01:56]} 20. Kg2 {[%clk 0:02:01]}  Re3 {[%clk 0:01:55]} 21. Qd2 {[%clk 0:01:58]}  Ne7 {[%clk 0:01:52]} 22. Qd4 {[%clk 0:01:42]}  Qxd5+ {[%clk 0:01:45]} 23. Qxd5 {[%clk 0:01:42]}  Nxd5 {[%clk 0:01:45]} 24. c4 {[%clk 0:01:43]}  Nb4 {[%clk 0:01:41]} 25. Nd4 {[%clk 0:01:42]}  Rc3 {[%clk 0:01:40]} 26. Re4 {[%clk 0:01:35]}  Rxc4 {[%clk 0:01:36]} 27. Rfe1 {[%clk 0:01:35]}  g6 {[%clk 0:01:34]} 28. f5 {[%clk 0:01:35]}  gxf5 {[%clk 0:01:23]} 29. Nxf5 {[%clk 0:01:27]}  Rxe4 {[%clk 0:01:04]} 30. Rxe4 {[%clk 0:01:28]}  Nxc2 {[%clk 0:01:02]} 31. Re7 {[%clk 0:01:28]}  b5 {[%clk 0:00:59]} 32. axb5 {[%clk 0:01:29]}  a4 {[%clk 0:01:00]} 33. Nh6+ {[%clk 0:01:05]}  Kg7 {[%clk 0:00:57]} 34. Rxf7+ {[%clk 0:00:58]}  Kg6 {[%clk 0:00:57]} 35. h4 {[%clk 0:00:59]}  a3 {[%clk 0:00:53]} 36. Rf6+ {[%clk 0:00:55]}  Kg7 {[%clk 0:00:44]} 37. Rf7+ {[%clk 0:00:55]}  Kh8 {[%clk 0:00:45]} 38. h5 {[%clk 0:00:53]}  Ne3+ {[%clk 0:00:28]} 39. Kh3 {[%clk 0:00:48]}  Nd5 {[%clk 0:00:22]} 40. Kg3 {[%clk 0:00:33]}  a2 {[%clk 0:00:02]} 41. g6 {[%clk 0:00:33]}  Ra3+ {[%clk 0:00:02]} 42. Kf2 {[%clk 0:00:32]}  hxg6 {[%clk 0:00:02]} 43. hxg6 {[%clk 0:00:32]}  Nf6 {[%clk 0:00:02]} 44. g7+ {[%clk 0:00:32]}  Kh7 {[%clk 0:00:03]} 45. g8=Q+ {[%clk 0:00:33]}  Kxh6 {[%clk 0:00:03]} 46. Rxf6+ {[%clk 0:00:32]}  Kh5 {[%clk 0:00:03]} 47. Qh7+ {[%clk 0:00:31]}  Kg4 {[%clk 0:00:02]} 48. Qg6+ {[%clk 0:00:28]}  Kh4 {[%clk 0:00:02]} 49. Qh6+ {[%clk 0:00:27]}  Kg4 {[%clk 0:00:03]} 50. Rf4# {[%clk 0:00:28]} 1-0

[Event "January 2 Early 2024"]
[Site "https://www.chess.com"]
[Date "2024.01.02"]
[Round "6"]
[White "Nakamura, Hikaru"]
[Black "Bjerre, Jonas Buhl"]
[Result "1-0"]
[Board "9"]
[TimeControl "180+1"]
[WhiteFideId "2016192"]
[BlackFideId "1444948"]
[WhiteElo "3230"]
[BlackElo "2888"]
[WhiteTeam "USA"]
[BlackTeam "DEN"]
[WhiteClock "0:01:00"]
[BlackClock "0:00:10"]

1. Nf3 {[%clk 0:03:00]}  c5 {[%clk 0:02:57]} 2. e4 {[%clk 0:02:57]}  d6 {[%clk 0:02:57]} 3. c3 {[%clk 0:02:56]}  Nf6 {[%clk 0:02:56]} 4. h3 {[%clk 0:02:55]}  g6 {[%clk 0:02:54]} 5. Bd3 {[%clk 0:02:55]}  Bg7 {[%clk 0:02:51]} 6. Bc2 {[%clk 0:02:55]}  e5 {[%clk 0:02:39]} 7. d3 {[%clk 0:02:54]}  O-O {[%clk 0:02:37]} 8. O-O {[%clk 0:02:52]}  h6 {[%clk 0:02:36]} 9. a3 {[%clk 0:02:51]}  Be6 {[%clk 0:02:28]} 10. b4 {[%clk 0:02:50]}  Nbd7 {[%clk 0:02:22]} 11. Nbd2 {[%clk 0:02:46]}  d5 {[%clk 0:02:18]} 12. Re1 {[%clk 0:02:44]}  Qc7 {[%clk 0:02:13]} 13. Bb2 {[%clk 0:02:39]}  Rfd8 {[%clk 0:02:03]} 14. Qe2 {[%clk 0:02:24]}  a5 {[%clk 0:01:50]} 15. bxa5 {[%clk 0:01:59]}  c4 {[%clk 0:01:32]} 16. d4 {[%clk 0:01:50]}  dxe4 {[%clk 0:01:25]} 17. Nxe5 {[%clk 0:01:48]}  Nxe5 {[%clk 0:01:20]} 18. dxe5 {[%clk 0:01:49]}  Nd5 {[%clk 0:01:04]} 19. Nxe4 {[%clk 0:01:49]}  Bxe5 {[%clk 0:00:46]} 20. Qf3 {[%clk 0:01:40]}  Nf4 {[%clk 0:00:41]} 21. Rad1 {[%clk 0:01:34]}  Bd5 {[%clk 0:00:41]} 22. Bc1 {[%clk 0:01:21]}  Kh7 {[%clk 0:00:19]} 23. Bxf4 {[%clk 0:01:17]}  Bxe4 {[%clk 0:00:19]} 24. Bxe5 {[%clk 0:01:07]}  Bxf3 {[%clk 0:00:18]} 25. Bxc7 {[%clk 0:01:04]}  Bxd1 {[%clk 0:00:18]} 26. Rxd1 {[%clk 0:01:01]}  Rxd1+ {[%clk 0:00:17]} 27. Bxd1 {[%clk 0:01:01]}  Rc8 {[%clk 0:00:14]} 28. Bb6 {[%clk 0:01:00]}  Re8 {[%clk 0:00:13]} 29. Bf3 {[%clk 0:01:00]}  Re1+ {[%clk 0:00:10]} 30. Kh2 {[%clk 0:01:00]} 1-0

[Event "January 2 Early 2024"]
[Site "https://www.chess.com"]
[Date "2024.01.02"]
[Round "6"]
[White "Durarbayli, Vasif"]
[Black "Firouzja, Alireza"]
[Result "0-1"]
[Board "11"]
[TimeControl "180+1"]
[WhiteFideId "13402935"]
[BlackFideId "12573981"]
[WhiteElo "2850"]
[BlackElo "3152"]
[WhiteTeam "AZE"]
[BlackTeam "FRA"]
[WhiteClock "0:00:00"]
[BlackClock "0:00:25"]

1. e4 {[%clk 0:03:00]}  c6 {[%clk 0:02:59]} 2. d4 {[%clk 0:03:00]}  d5 {[%clk 0:03:00]} 3. exd5 {[%clk 0:03:01]}  cxd5 {[%clk 0:03:00]} 4. c4 {[%clk 0:03:02]}  Nf6 {[%clk 0:03:00]} 5. Nc3 {[%clk 0:03:02]}  Nc6 {[%clk 0:02:59]} 6. Nf3 {[%clk 0:03:02]}  a6 {[%clk 0:02:59]} 7. h3 {[%clk 0:02:59]}  g6 {[%clk 0:02:54]} 8. c5 {[%clk 0:02:58]}  Bg7 {[%clk 0:02:53]} 9. Bd3 {[%clk 0:02:58]}  O-O {[%clk 0:02:47]} 10. O-O {[%clk 0:02:58]}  Nd7 {[%clk 0:02:41]} 11. Bc2 {[%clk 0:02:31]}  e6 {[%clk 0:02:39]} 12. Bg5 {[%clk 0:02:26]}  Qc7 {[%clk 0:02:33]} 13. Qd2 {[%clk 0:02:21]}  b6 {[%clk 0:02:33]} 14. Bf4 {[%clk 0:02:11]}  Qb7 {[%clk 0:02:19]} 15. cxb6 {[%clk 0:01:50]}  Qxb6 {[%clk 0:02:16]} 16. Rfd1 {[%clk 0:01:39]}  Bb7 {[%clk 0:02:01]} 17. Ba4 {[%clk 0:01:17]}  Rfc8 {[%clk 0:01:57]} 18. Rab1 {[%clk 0:01:16]}  a5 {[%clk 0:01:30]} 19. Nb5 {[%clk 0:01:08]}  Nf6 {[%clk 0:01:06]} 20. Ng5 {[%clk 0:00:41]}  h6 {[%clk 0:00:47]} 21. Nxf7 {[%clk 0:00:41]}  Ne4 {[%clk 0:00:48]} 22. Qe3 {[%clk 0:00:41]}  Kxf7 {[%clk 0:00:48]} 23. Bxh6 {[%clk 0:00:41]}  Ba6 {[%clk 0:00:39]} 24. Qf4+ {[%clk 0:00:35]}  Bf6 {[%clk 0:00:39]} 25. Nc3 {[%clk 0:00:20]}  Nxd4 {[%clk 0:00:36]} 26. Kh1 {[%clk 0:00:05]}  Qc7 {[%clk 0:00:27]} 27. Qe3 {[%clk 0:00:02]}  Nf5 {[%clk 0:00:27]} 28. Qc1 {[%clk 0:00:01]}  Nxf2+ {[%clk 0:00:26]} 29. Kg1 {[%clk 0:00:01]}  Nxh3+ {[%clk 0:00:26]} 30. gxh3 {[%clk 0:00:02]}  Qg3+ {[%clk 0:00:26]} 31. Kh1 {[%clk 0:00:02]}  Qxh3+ {[%clk 0:00:27]} 32. Kg1 {[%clk 0:00:03]}  Qg3+ {[%clk 0:00:24]} 33. Kh1 {[%clk 0:00:00]}  Rh8 {[%clk 0:00:25]} 0-1

[Event "January 2 Early 2024"]
[Site "https://www.chess.com"]
[Date "2024.01.02"]
[Round "6"]
[White "Fedoseev, Vladimir"]
[Black "Narayanan, Srinath"]
[Result "0-1"]
[Board "15"]
[TimeControl "180+1"]
[WhiteFideId "24130737"]
[BlackFideId "5018420"]
[WhiteElo "3029"]
[BlackElo "2828"]
[WhiteTeam "SLO"]
[BlackTeam "IND"]
[WhiteClock "0:00:05"]
[BlackClock "0:00:10"]

1. Nf3 {[%clk 0:03:00]}  d5 {[%clk 0:02:58]} 2. g3 {[%clk 0:03:01]}  g6 {[%clk 0:02:59]} 3. Bg2 {[%clk 0:03:01]}  Bg7 {[%clk 0:02:59]} 4. d4 {[%clk 0:03:00]}  Nf6 {[%clk 0:02:59]} 5. O-O {[%clk 0:03:01]}  O-O {[%clk 0:03:00]} 6. c3 {[%clk 0:03:02]}  c6 {[%clk 0:02:58]} 7. Bf4 {[%clk 0:03:00]}  Bf5 {[%clk 0:02:58]} 8. Qc1 {[%clk 0:03:01]}  Nbd7 {[%clk 0:02:57]} 9. Nh4 {[%clk 0:02:59]}  Be6 {[%clk 0:02:51]} 10. Bh6 {[%clk 0:02:56]}  c5 {[%clk 0:02:50]} 11. Bxg7 {[%clk 0:02:55]}  Kxg7 {[%clk 0:02:51]} 12. e3 {[%clk 0:02:55]}  Rc8 {[%clk 0:02:49]} 13. a4 {[%clk 0:02:51]}  b6 {[%clk 0:02:41]} 14. Nd2 {[%clk 0:02:50]}  Qc7 {[%clk 0:02:40]} 15. h3 {[%clk 0:02:46]}  Nb8 {[%clk 0:02:39]} 16. f4 {[%clk 0:02:41]}  Bd7 {[%clk 0:02:34]} 17. g4 {[%clk 0:02:41]}  Bc6 {[%clk 0:02:30]} 18. Qe1 {[%clk 0:02:38]}  Nbd7 {[%clk 0:02:28]} 19. Nhf3 {[%clk 0:02:19]}  Ne4 {[%clk 0:02:25]} 20. Nxe4 {[%clk 0:02:10]}  dxe4 {[%clk 0:02:26]} 21. Nd2 {[%clk 0:02:07]}  f5 {[%clk 0:02:15]} 22. gxf5 {[%clk 0:01:58]}  gxf5 {[%clk 0:02:16]} 23. Qh4 {[%clk 0:01:55]}  Rf6 {[%clk 0:01:52]} 24. Kh2 {[%clk 0:01:47]}  Kh8 {[%clk 0:01:48]} 25. Rg1 {[%clk 0:01:45]}  Bd5 {[%clk 0:01:28]} 26. Bf1 {[%clk 0:01:06]}  cxd4 {[%clk 0:01:26]} 27. cxd4 {[%clk 0:01:07]}  Qc2 {[%clk 0:01:21]} 28. Rg2 {[%clk 0:01:07]}  Rg8 {[%clk 0:01:17]} 29. Qe1 {[%clk 0:00:56]}  Rxg2+ {[%clk 0:01:10]} 30. Bxg2 {[%clk 0:00:56]}  Qxb2 {[%clk 0:01:11]} 31. a5 {[%clk 0:00:47]}  Rg6 {[%clk 0:00:37]} 32. axb6 {[%clk 0:00:46]}  Qxb6 {[%clk 0:00:38]} 33. Nf1 {[%clk 0:00:40]}  e6 {[%clk 0:00:25]} 34. Ng3 {[%clk 0:00:35]}  Nf6 {[%clk 0:00:24]} 35. Qc3 {[%clk 0:00:29]}  Rg8 {[%clk 0:00:22]} 36. Bf1 {[%clk 0:00:25]}  Qb7 {[%clk 0:00:20]} 37. Be2 {[%clk 0:00:22]}  Rc8 {[%clk 0:00:18]} 38. Qa5 {[%clk 0:00:20]}  Rc2 {[%clk 0:00:16]} 39. Qd8+ {[%clk 0:00:20]}  Ng8 {[%clk 0:00:17]} 40. Rg1 {[%clk 0:00:20]}  Qc8 {[%clk 0:00:15]} 41. Qg5 {[%clk 0:00:19]}  Qf8 {[%clk 0:00:14]} 42. Rg2 {[%clk 0:00:19]}  a5 {[%clk 0:00:14]} 43. Nh5 {[%clk 0:00:10]}  a4 {[%clk 0:00:12]} 44. Qh4 {[%clk 0:00:05]}  a3 {[%clk 0:00:11]} 45. Qe1 {[%clk 0:00:05]}  a2 {[%clk 0:00:10]} 46. Qa5 {[%clk 0:00:05]}  Rb2 {[%clk 0:00:09]} 47. Qa7 {[%clk 0:00:05]}  Nh6 {[%clk 0:00:06]} 48. Nf6 {[%clk 0:00:01]}  Nf7 {[%clk 0:00:04]} 49. Nxd5 {[%clk 0:00:01]}  exd5 {[%clk 0:00:03]} 50. Qa5 {[%clk 0:00:02]}  Nh6 {[%clk 0:00:03]} 51. Bh5 {[%clk 0:00:01]}  Rxg2+ {[%clk 0:00:02]} 52. Kxg2 {[%clk 0:00:02]}  Qg8+ {[%clk 0:00:02]} 53. Kf2 {[%clk 0:00:02]}  Qb8 {[%clk 0:00:01]} 54. Qxa2 {[%clk 0:00:02]}  Qd8 {[%clk 0:00:02]} 55. Qa6 {[%clk 0:00:02]}  Qh4+ {[%clk 0:00:02]} 56. Kg2 {[%clk 0:00:01]}  Qxh5 {[%clk 0:00:03]} 57. Qc8+ {[%clk 0:00:02]}  Ng8 {[%clk 0:00:04]} 58. Qe6 {[%clk 0:00:01]}  Qg6+ {[%clk 0:00:05]} 59. Qxg6 {[%clk 0:00:01]}  hxg6 {[%clk 0:00:05]} 60. Kg3 {[%clk 0:00:02]}  Kg7 {[%clk 0:00:06]} 61. Kh4 {[%clk 0:00:02]}  Kf6 {[%clk 0:00:07]} 62. Kg3 {[%clk 0:00:03]}  Ne7 {[%clk 0:00:07]} 63. h4 {[%clk 0:00:04]}  Nc6 {[%clk 0:00:08]} 64. Kf2 {[%clk 0:00:05]}  Nb4 {[%clk 0:00:09]} 65. Ke2 {[%clk 0:00:05]}  Nd3 {[%clk 0:00:10]} 0-1

[Event "January 2 Early 2024"]
[Site "https://www.chess.com"]
[Date "2024.01.02"]
[Round "6"]
[White "Meier, Georg"]
[Black "Van Foreest, Lucas"]
[Result "1-0"]
[Board "16"]
[TimeControl "180+1"]
[WhiteFideId "4675789"]
[BlackFideId "1039792"]
[WhiteElo "3016"]
[BlackElo "2827"]
[WhiteTeam "URU"]
[BlackTeam "NED"]
[WhiteClock "0:00:15"]
[BlackClock "0:00:51"]

1. Nf3 {[%clk 0:02:45]}  g5 {[%clk 0:02:59]} 2. Nxg5 {[%clk 0:02:43]}  e5 {[%clk 0:02:59]} 3. Nf3 {[%clk 0:02:41]}  e4 {[%clk 0:02:59]} 4. Nd4 {[%clk 0:02:41]}  Bg7 {[%clk 0:02:58]} 5. c3 {[%clk 0:02:40]}  d5 {[%clk 0:02:57]} 6. d3 {[%clk 0:02:39]}  c5 {[%clk 0:02:57]} 7. Nb3 {[%clk 0:02:35]}  exd3 {[%clk 0:02:51]} 8. exd3 {[%clk 0:02:32]}  b6 {[%clk 0:02:48]} 9. Be2 {[%clk 0:02:27]}  Ne7 {[%clk 0:02:48]} 10. d4 {[%clk 0:02:24]}  c4 {[%clk 0:02:45]} 11. N3d2 {[%clk 0:02:24]}  Nbc6 {[%clk 0:02:45]} 12. Nf1 {[%clk 0:02:20]}  Bf5 {[%clk 0:02:40]} 13. Ng3 {[%clk 0:02:16]}  Bg6 {[%clk 0:02:40]} 14. Nd2 {[%clk 0:02:15]}  b5 {[%clk 0:02:39]} 15. h4 {[%clk 0:02:02]}  h6 {[%clk 0:02:22]} 16. Ndf1 {[%clk 0:01:29]}  Qa5 {[%clk 0:02:20]} 17. Bd2 {[%clk 0:01:27]}  b4 {[%clk 0:02:19]} 18. Ne3 {[%clk 0:01:19]}  bxc3 {[%clk 0:02:18]} 19. bxc3 {[%clk 0:01:08]}  Rb8 {[%clk 0:02:04]} 20. O-O {[%clk 0:00:59]}  Rb2 {[%clk 0:01:43]} 21. Nh5 {[%clk 0:00:58]}  Bxh5 {[%clk 0:01:35]} 22. Bxh5 {[%clk 0:00:57]}  Bxd4 {[%clk 0:01:18]} 23. Bc1 {[%clk 0:00:46]}  Bxc3 {[%clk 0:01:17]} 24. Bxb2 {[%clk 0:00:43]}  Bxb2 {[%clk 0:01:18]} 25. Rb1 {[%clk 0:00:44]}  c3 {[%clk 0:01:15]} 26. Bf3 {[%clk 0:00:29]}  Nb4 {[%clk 0:01:02]} 27. Qb3 {[%clk 0:00:23]}  O-O {[%clk 0:00:56]} 28. Rxb2 {[%clk 0:00:19]}  cxb2 {[%clk 0:00:56]} 29. a3 {[%clk 0:00:18]}  Nbc6 {[%clk 0:00:55]} 30. Qxb2 {[%clk 0:00:18]}  d4 {[%clk 0:00:55]} 31. Nc4 {[%clk 0:00:16]}  Rd8 {[%clk 0:00:51]} 32. Nxa5 {[%clk 0:00:15]} 1-0

[Event "January 2 Early 2024"]
[Site "https://www.chess.com"]
[Date "2024.01.02"]
[Round "6"]
[White "Bok, Benjamin"]
[Black "De Winter, Arthur"]
[Result "1-0"]
[Board "21"]
[TimeControl "180+1"]
[WhiteFideId "1017063"]
[BlackFideId "1069020"]
[WhiteElo "2948"]
[BlackElo "2808"]
[WhiteTeam "NED"]
[BlackTeam "NED"]
[WhiteClock "0:02:05"]
[BlackClock "0:00:47"]

1. d4 {[%clk 0:03:00]}  Nf6 {[%clk 0:02:58]} 2. c4 {[%clk 0:03:00]}  d6 {[%clk 0:02:57]} 3. Nf3 {[%clk 0:03:00]}  g6 {[%clk 0:02:57]} 4. g3 {[%clk 0:03:00]}  Bg7 {[%clk 0:02:57]} 5. Bg2 {[%clk 0:03:00]}  O-O {[%clk 0:02:57]} 6. Nc3 {[%clk 0:03:01]}  Nbd7 {[%clk 0:02:46]} 7. O-O {[%clk 0:03:01]}  e5 {[%clk 0:02:46]} 8. e4 {[%clk 0:03:01]}  exd4 {[%clk 0:02:45]} 9. Nxd4 {[%clk 0:03:02]}  Re8 {[%clk 0:02:45]} 10. h3 {[%clk 0:03:03]}  Nc5 {[%clk 0:02:45]} 11. Re1 {[%clk 0:03:03]}  Bd7 {[%clk 0:02:45]} 12. Rb1 {[%clk 0:03:02]}  a5 {[%clk 0:02:43]} 13. b3 {[%clk 0:03:03]}  Qc8 {[%clk 0:02:41]} 14. Kh2 {[%clk 0:03:02]}  c6 {[%clk 0:02:15]} 15. Bf4 {[%clk 0:02:59]}  Qc7 {[%clk 0:02:09]} 16. Nc2 {[%clk 0:02:49]}  Bf8 {[%clk 0:02:00]} 17. Qd2 {[%clk 0:02:48]}  Ne6 {[%clk 0:01:56]} 18. Be3 {[%clk 0:02:38]}  Rad8 {[%clk 0:01:47]} 19. Rbd1 {[%clk 0:02:34]}  Bc8 {[%clk 0:01:32]} 20. f4 {[%clk 0:02:21]}  b6 {[%clk 0:01:13]} 21. Qf2 {[%clk 0:02:17]}  c5 {[%clk 0:01:09]} 22. f5 {[%clk 0:02:04]}  gxf5 {[%clk 0:01:01]} 23. exf5 {[%clk 0:02:05]}  Ng7 {[%clk 0:00:47]} 24. Bg5 {[%clk 0:02:05]} 1-0

[Event "January 2 Early 2024"]
[Site "https://www.chess.com"]
[Date "2024.01.02"]
[Round "6"]
[White "Haug, Havard"]
[Black "Kovalev, Vladislav"]
[Result "0-1"]
[Board "24"]
[TimeControl "180+1"]
[WhiteFideId "1547887"]
[BlackFideId "13504398"]
[WhiteElo "2791"]
[BlackElo "2938"]
[WhiteTeam "NOR"]
[BlackTeam "FID"]
[WhiteClock "0:02:09"]
[BlackClock "0:01:50"]

1. e4 {[%clk 0:03:00]}  e5 {[%clk 0:03:00]} 2. Nf3 {[%clk 0:02:54]}  Nc6 {[%clk 0:03:00]} 3. Bc4 {[%clk 0:02:54]}  Nf6 {[%clk 0:03:00]} 4. d3 {[%clk 0:02:53]}  Bc5 {[%clk 0:03:01]} 5. c3 {[%clk 0:02:53]}  a6 {[%clk 0:03:00]} 6. O-O {[%clk 0:02:52]}  d6 {[%clk 0:03:01]} 7. Re1 {[%clk 0:02:52]}  h6 {[%clk 0:03:01]} 8. Be3 {[%clk 0:02:49]}  Bxe3 {[%clk 0:02:57]} 9. fxe3 {[%clk 0:02:47]}  Na5 {[%clk 0:02:49]} 10. Bb3 {[%clk 0:02:45]}  Nxb3 {[%clk 0:02:49]} 11. axb3 {[%clk 0:02:46]}  O-O {[%clk 0:02:47]} 12. Nbd2 {[%clk 0:02:45]}  Re8 {[%clk 0:02:45]} 13. Nf1 {[%clk 0:02:43]}  d5 {[%clk 0:02:45]} 14. exd5 {[%clk 0:02:38]}  Nxd5 {[%clk 0:02:42]} 15. e4 {[%clk 0:02:35]}  Nf4 {[%clk 0:02:42]} 16. d4 {[%clk 0:02:36]}  exd4 {[%clk 0:02:29]} 17. cxd4 {[%clk 0:02:37]}  Bg4 {[%clk 0:02:27]} 18. Ne3 {[%clk 0:02:32]}  Bxf3 {[%clk 0:02:05]} 19. Qxf3 {[%clk 0:02:18]}  Nd3 {[%clk 0:02:02]} 20. Rf1 {[%clk 0:02:10]}  Qxd4 {[%clk 0:02:00]} 21. Qxf7+ {[%clk 0:02:05]}  Kh8 {[%clk 0:02:00]} 22. Qf3 {[%clk 0:02:05]}  Rxe4 {[%clk 0:01:56]} 23. Rae1 {[%clk 0:01:59]}  Nxe1 {[%clk 0:01:45]} 24. Rxe1 {[%clk 0:02:00]}  Rae8 {[%clk 0:01:45]} 25. Kf2 {[%clk 0:01:59]}  Rf4 {[%clk 0:01:45]} 26. Kg3 {[%clk 0:02:00]}  Rxf3+ {[%clk 0:01:45]} 27. Kxf3 {[%clk 0:02:01]}  Qe4+ {[%clk 0:01:44]} 28. Kf2 {[%clk 0:02:01]}  Qf4+ {[%clk 0:01:44]} 29. Kg1 {[%clk 0:02:01]}  Rxe3 {[%clk 0:01:44]} 30. Rxe3 {[%clk 0:02:02]}  Qxe3+ {[%clk 0:01:45]} 31. Kf1 {[%clk 0:02:03]}  Qc1+ {[%clk 0:01:45]} 32. Kf2 {[%clk 0:02:03]}  Qxb2+ {[%clk 0:01:46]} 33. Kg3 {[%clk 0:02:04]}  Qxb3+ {[%clk 0:01:47]} 34. Kf2 {[%clk 0:02:05]}  a5 {[%clk 0:01:48]} 35. h3 {[%clk 0:02:06]}  a4 {[%clk 0:01:48]} 36. Kg1 {[%clk 0:02:07]}  a3 {[%clk 0:01:49]} 37. Kh2 {[%clk 0:02:08]}  a2 {[%clk 0:01:50]} 38. Kg1 {[%clk 0:02:08]}  a1=Q+ {[%clk 0:01:51]} 39. Kh2 {[%clk 0:02:09]}  Qe5+ {[%clk 0:01:49]} 40. Kg1 {[%clk 0:02:10]}  Qbe3+ {[%clk 0:01:49]} 41. Kh1 {[%clk 0:02:09]}  Qe1# {[%clk 0:01:50]} 0-1